bitfinex/quotes_BTCUSD_20260103
["timestamp","ask_amount","ask_price","bid_price","bid_amount"]
[1767413821773,0.01107714,90276.0,90269.0,0.000999]
[1767413821977,2.7e-07,90278.0,90275.0,0.06646356]
[1767413822106,2.7e-07,90278.0,90277.0,0.05538509]
[1767413831288,2.7e-07,90278.0,90276.0,0.05538525]
[1767413834620,0.02226575,90286.0,90281.0,0.01107652]
[1767413834816,0.01107603,90285.0,90279.0,0.01107677]
[1767413835020,0.02226575,90286.0,90280.0,0.01107665]
[1767413835223,0.02222194,90286.0,90280.0,0.01107665]
[1767413835863,0.01107603,90285.0,90280.0,0.01107665]
[1767413837974,0.02222194,90286.0,90281.0,0.01107652]
[1767413838109,0.01107603,90285.0,90280.0,0.01107665]
[1767413839017,0.02222194,90286.0,90281.0,0.01107652]
[1767413840590,0.02222194,90286.0,90280.0,0.01107665]
[1767413841210,0.02222194,90286.0,90281.0,0.01107652]
[1767413845509,0.02222194,90286.0,90282.0,0.0110764]
[1767413846288,0.02222194,90286.0,90281.0,0.01107652]
[1767413849376,0.01107603,90285.0,90279.0,0.01107677]
[1767413849777,0.02222194,90286.0,90281.0,0.01107652]
[1767413850789,0.01107628,90283.0,90276.0,0.01107714]
[1767413850994,0.0110764,90282.0,90277.0,0.01107701]
[1767413851350,0.01107652,90281.0,90275.0,0.06646343]
[1767413852124,0.01107652,90281.0,90276.0,0.01107714]
[1767413853085,0.0110764,90282.0,90277.0,0.01107701]
[1767413853216,0.01107652,90281.0,90276.0,0.01107714]
[1767413853921,0.01107652,90281.0,90277.0,0.01107701]
[1767413854565,0.0110764,90282.0,90277.0,0.01107701]
[1767413855902,0.01107652,90281.0,90277.0,0.01107701]
[1767413856302,0.0110764,90282.0,90277.0,0.01107701]
[1767413856506,0.01107652,90281.0,90277.0,0.01107701]
[1767413856906,0.01107652,90281.0,90276.0,0.01107714]
[1767413858458,0.0110764,90282.0,90277.0,0.01107701]
[1767413859578,0.01107652,90281.0,90276.0,0.01107714]
[1767413861633,0.01107665,90280.0,90275.0,0.01107726]
[1767413861841,0.01107665,90280.0,90276.0,0.01107714]
[1767413862037,0.01107652,90281.0,90276.0,0.01107714]
[1767413862441,0.01107652,90281.0,90273.0,0.05752547]
[1767413862442,0.06646015,90280.0,90273.0,0.05752547]
[1767413862682,0.01107677,90279.0,90274.0,0.01107738]
[1767413862900,0.01107665,90280.0,90275.0,0.01107726]
[1767413863276,0.01107677,90279.0,90274.0,0.01107738]
[1767413863678,0.01107665,90280.0,90275.0,0.01107726]
[1767413864364,0.02991235,90294.0,90270.0,0.04927783]
[1767413864365,0.01107763,90272.0,90270.0,0.04927783]
[1767413864680,0.01007863,90272.0,90269.0,0.01157549]
[1767413865448,0.0110775,90273.0,90269.0,0.01157549]
[1767413865689,0.06646629,90272.0,90269.0,0.00049549]
[1767413865833,0.00050351,90269.0,90268.0,0.01108]
[1767413866001,5.978e-05,90269.0,90268.0,0.01108]
[1767413866845,5.978e-05,90269.0,90268.0,0.010576]
[1767413869756,7.8e-07,90269.0,90268.0,0.010576]
[1767413871269,7.8e-07,90269.0,90262.0,0.1157507]
[1767413871270,0.01107861,90264.0,90257.0,0.01107947]
[1767413871462,0.01107885,90262.0,90256.0,0.01107959]
[1767413871646,0.01013873,90263.0,90257.0,0.01107947]
[1767413872062,0.01013873,90263.0,90257.0,0.0603573]
[1767413872063,0.01107885,90262.0,90257.0,0.0603573]
[1767413872405,0.01013873,90263.0,90258.0,0.04927783]
[1767413872877,0.01107885,90262.0,90258.0,0.04927783]
[1767413873462,0.01107873,90263.0,90258.0,0.06035718]
[1767413873661,0.01107861,90264.0,90259.0,0.01107922]
[1767413874036,0.01107873,90263.0,90258.0,0.01107935]
[1767413875362,0.01107849,90265.0,90260.0,0.0110791]
[1767413875561,0.01107836,90266.0,90261.0,0.01107898]
[1767413876022,0.01107836,90266.0,90260.0,0.0110791]
[1767413876023,0.01107849,90265.0,90260.0,0.0110791]
[1767413876716,0.000999,90260.0,90258.0,0.1157539]
[1767413876923,0.01107861,90264.0,90259.0,0.01107922]
[1767413877424,0.01107861,90264.0,90258.0,0.06035718]
[1767413877579,0.01107861,90264.0,90259.0,0.01107922]
[1767413878413,0.01107873,90263.0,90258.0,0.06035718]
[1767413881007,0.01107861,90264.0,90259.0,0.01107922]
[1767413881224,0.01107873,90263.0,90259.0,0.01107922]
[1767413881428,0.00893873,90263.0,90258.0,0.06035718]
[1767413881779,0.01107861,90264.0,90259.0,0.01107922]
[1767413881973,0.01107849,90265.0,90258.0,0.06035718]
[1767413882183,0.01107873,90263.0,90258.0,0.06035718]
[1767413882390,0.01107861,90264.0,90259.0,0.01107922]
[1767413882598,0.01107849,90265.0,90259.0,0.01107922]
[1767413883358,0.01107836,90266.0,90260.0,0.05539552]
[1767413883583,0.01107836,90266.0,90259.0,0.01107922]
[1767413884295,0.01107849,90265.0,90259.0,0.01107922]
[1767413884487,0.01107873,90263.0,90258.0,0.06035718]
[1767413886521,0.01107885,90262.0,90257.0,0.01107947]
[1767413886698,0.01107885,90262.0,90257.0,0.05649269]
[1767413886879,0.01107873,90263.0,90258.0,0.01107935]
[1767413888370,0.01107849,90265.0,90258.0,0.01107935]
[1767413888691,0.01107849,90265.0,90259.0,0.01107922]
[1767413889036,0.01107849,90265.0,90260.0,0.0110791]
[1767413890279,0.01107861,90264.0,90259.0,0.01107922]
[1767413890494,0.01107873,90263.0,90259.0,0.01107922]
[1767413892878,0.01107873,90263.0,90257.0,0.11188965]
[1767413893436,0.01107861,90264.0,90259.0,0.01107922]
[1767413893634,0.01107849,90265.0,90259.0,0.01107922]
[1767413894013,0.01107861,90264.0,90258.0,0.01107935]
[1767413894671,0.01107873,90263.0,90259.0,0.01107922]
[1767413895012,0.01107873,90263.0,90258.0,0.01107935]
[1767413895189,0.01107861,90264.0,90259.0,0.01107922]
[1767413895369,0.01107873,90263.0,90258.0,0.01107935]
[1767413895714,0.01107861,90264.0,90259.0,0.01107922]
[1767413897058,0.01107861,90264.0,90260.0,0.0110791]
[1767413897264,0.01107849,90265.0,90259.0,0.01107922]
[1767413897447,0.01107836,90266.0,90261.0,0.01107898]
[1767413897659,0.01107849,90265.0,90260.0,0.0110791]
[1767413897860,0.01107824,90267.0,90262.0,0.01107885]
[1767413898017,0.06646916,90269.0,90261.0,0.01107898]
[1767413898206,0.06646916,90269.0,90259.0,0.01107922]
[1767413898207,7.8e-07,90269.0,90266.0,0.01107836]
[1767413898820,7.8e-07,90269.0,90266.0,0.06646978]
[1767413899065,7.8e-07,90269.0,90267.0,0.05539074]
[1767413900886,0.000999,90267.0,90266.0,0.06646978]
[1767413901137,7.8e-07,90269.0,90266.0,0.06646978]
[1767413901328,7.8e-07,90269.0,90267.0,0.05534666]
[1767413901870,7.8e-07,90269.0,90263.0,0.06757195]
[1767413901871,0.000999,90267.0,90263.0,0.05649322]
[1767413902058,0.01107812,90268.0,90263.0,0.01108]
[1767413902449,0.01107812,90268.0,90264.0,0.01107861]
[1767413902698,0.01107812,90268.0,90264.0,0.01121418]
[1767413903301,0.01107878,90269.0,90264.0,0.01121418]
[1767413904314,7.8e-07,90269.0,90265.0,0.01107849]
[1767413904520,0.01107878,90269.0,90264.0,0.00013557]
[1767413904752,0.01107878,90269.0,90264.0,0.01121418]
[1767413905528,7.8e-07,90269.0,90265.0,0.01107849]
[1767413905728,0.01107878,90269.0,90265.0,0.00013557]
[1767413906551,0.01107812,90268.0,90265.0,0.00013557]
[1767413906729,0.01107878,90269.0,90265.0,5.7e-07]
[1767413907326,7.8e-07,90269.0,90265.0,5.7e-07]
[1767413907525,0.01107878,90269.0,90265.0,5.7e-07]
[1767413908014,7.8e-07,90269.0,90265.0,5.7e-07]
[1767413909373,0.01107812,90268.0,90265.0,5.7e-07]
[1767413909596,0.01107878,90269.0,90265.0,5.7e-07]
[1767413911906,0.01107812,90268.0,90265.0,5.7e-07]
[1767413912140,0.01107878,90269.0,90265.0,5.7e-07]
[1767413912518,0.01107812,90268.0,90265.0,5.7e-07]
[1767413912704,0.01107878,90269.0,90265.0,5.7e-07]
[1767413913126,0.01107812,90268.0,90265.0,5.7e-07]
[1767413913451,0.01107812,90268.0,90258.0,0.10080948]
[1767413913452,0.01107885,90262.0,90256.0,0.02215959]
[1767413913648,0.01107885,90262.0,90257.0,0.01107947]
[1767413913952,0.01107873,90263.0,90258.0,0.01107935]
[1767413914089,0.01107836,90266.0,90263.0,0.000135]
[1767413914773,0.04725124,90267.0,90263.0,0.000135]
[1767413915053,0.01107812,90268.0,90262.0,0.01107885]
[1767413915253,0.01107878,90269.0,90264.0,0.01107861]
[1767413915455,7.8e-07,90269.0,90264.0,0.01107861]
[1767413915687,0.01107878,90269.0,90264.0,0.01107861]
[1767413916373,7.8e-07,90269.0,90264.0,0.01107861]
[1767413916583,0.01107878,90269.0,90263.0,0.01107873]
[1767413917106,0.01107812,90268.0,90263.0,0.01107873]
[1767413917223,0.01107824,90267.0,90262.0,0.01107885]
[1767413917739,0.01107812,90268.0,90263.0,0.01107873]
[1767413917983,0.01107812,90268.0,90264.0,0.01107861]
[1767413918212,0.01107812,90268.0,90263.0,0.01107873]
[1767413918430,0.01107878,90269.0,90264.0,0.01107861]
[1767413918958,7.8e-07,90269.0,90264.0,0.01107861]
[1767413919955,0.01107878,90269.0,90264.0,0.01107861]
[1767413920343,0.01093625,90268.0,90263.0,0.01107873]
[1767413920531,0.01093625,90268.0,90262.0,0.01107885]
[1767413920532,0.01107824,90267.0,90262.0,0.01107885]
[1767413920734,0.01093625,90268.0,90263.0,0.01107873]
[1767413922567,0.01107836,90266.0,90261.0,0.01107898]
[1767413922748,0.01093625,90268.0,90262.0,0.01107885]
[1767413923386,0.05539225,90266.0,90259.0,0.01107922]
[1767413923609,0.03862645,90267.0,90260.0,0.04652647]
[1767413923821,0.05539225,90266.0,90260.0,0.0110791]
[1767413923990,0.04725124,90265.0,90259.0,0.01107922]
[1767413924189,0.04725124,90265.0,90261.0,0.01107898]
[1767413925412,0.04725124,90265.0,90262.0,0.01107885]
[1767413926381,0.04725124,90265.0,90262.0,0.06647314]
[1767413926765,0.04725124,90265.0,90262.0,0.01107885]
[1767413926973,0.04725124,90265.0,90261.0,0.01107898]
[1767413927387,0.04725124,90265.0,90260.0,0.0110791]
[1767413927607,0.04725124,90264.0,90258.0,0.02215935]
[1767413927944,0.04725124,90264.0,90260.0,0.0110791]
[1767413928144,0.05832985,90264.0,90259.0,0.01107922]
[1767413928283,0.04725124,90264.0,90260.0,0.0110791]
[1767413928717,0.04725124,90264.0,90261.0,0.06647389]
[1767413928898,0.04725124,90264.0,90261.0,0.01107898]
[1767413931376,0.01107836,90266.0,90261.0,0.01107898]
[1767413931971,0.01107849,90265.0,90260.0,0.05760557]
[1767413932191,0.01107836,90266.0,90261.0,0.01107898]
[1767413932765,0.01107812,90268.0,90261.0,0.0664734]
[1767413933782,0.01107812,90268.0,90262.0,0.05539429]
[1767413933989,0.01107812,90268.0,90262.0,0.06647314]
[1767413934187,0.01107824,90267.0,90262.0,0.01107885]
[1767413934843,0.01107812,90268.0,90263.0,0.01107873]
[1767413935242,0.01107878,90269.0,90263.0,0.01107873]
[1767413936321,0.01107878,90269.0,90264.0,0.01107861]
[1767413936787,7.8e-07,90269.0,90264.0,0.01107861]
[1767413937190,7.8e-07,90269.0,90266.0,0.01107836]
[1767413938161,7.8e-07,90269.0,90267.0,0.05539085]
[1767413941783,7.8e-07,90269.0,90266.0,0.01107836]
[1767413942022,7.8e-07,90269.0,90265.0,0.01107849]
[1767413942919,7.8e-07,90269.0,90264.0,0.01107861]
[1767413943945,7.8e-07,90269.0,90265.0,0.01107849]
[1767413944085,0.01107878,90269.0,90264.0,0.01107861]
[1767413945058,0.01107824,90267.0,90262.0,0.01107885]
[1767413945258,0.05939976,90268.0,90263.0,0.01107873]
[1767413945487,0.05939988,90267.0,90262.0,0.01107885]
[1767413945680,0.01107836,90266.0,90261.0,0.01107898]
[1767413945889,0.01107836,90266.0,90262.0,0.01107885]
[1767413946007,0.01107836,90266.0,90261.0,0.01107898]
[1767413946860,0.01107824,90267.0,90262.0,0.01107885]
[1767413947024,0.01107836,90266.0,90261.0,0.01107898]
[1767413947221,0.01107824,90267.0,90262.0,0.01107885]
[1767413947648,0.01107836,90266.0,90261.0,0.01107898]
[1767413949070,0.01107812,90268.0,90262.0,0.01107885]
[1767413949275,0.01107812,90268.0,90263.0,0.01107873]
[1767413949873,0.01107812,90268.0,90262.0,0.01107885]
[1767413950461,0.01107836,90266.0,90261.0,0.01107898]
[1767413951377,0.01107824,90267.0,90262.0,0.01107885]
[1767413951693,0.01107824,90267.0,90261.0,0.01107898]
[1767413951898,0.01107849,90265.0,90258.0,0.02215935]
[1767413952101,0.01107849,90265.0,90258.0,0.01108]
[1767413952102,0.01107898,90261.0,90258.0,0.01108]
[1767413952464,0.01107873,90263.0,90258.0,0.01108]
[1767413953132,0.01107885,90262.0,90258.0,0.01108]
[1767413953272,0.01107898,90261.0,90258.0,0.01108]
[1767413953932,0.01107873,90263.0,90257.0,0.01107947]
[1767413954126,0.01107898,90261.0,90256.0,0.01108]
[1767413954489,0.01107898,90261.0,90256.0,0.02215959]
[1767413954699,0.01107873,90263.0,90257.0,0.01107947]
[1767413955331,0.01107885,90262.0,90257.0,0.01107947]
[1767413956931,0.01107898,90261.0,90256.0,0.02215959]
[1767413957274,0.01107898,90261.0,90257.0,0.01107947]
[1767413957573,0.01107885,90262.0,90257.0,0.01107947]
[1767413958290,0.01107898,90261.0,90256.0,0.02215959]
[1767413958630,0.01107885,90262.0,90257.0,0.01107947]
[1767413959311,0.01107873,90263.0,90258.0,0.01107935]
[1767413959895,0.01107873,90263.0,90257.0,0.01107947]
[1767413960089,0.01107885,90262.0,90257.0,0.01107947]
[1767413960656,0.01107898,90261.0,90256.0,0.02215959]
[1767413963133,0.0110791,90260.0,90256.0,0.01108]
[1767413963484,0.01107922,90259.0,90256.0,0.01108]
[1767413963727,0.0110791,90260.0,90256.0,0.01108]
[1767413964068,0.01107898,90261.0,90256.0,0.02215959]
[1767413965471,0.01107885,90262.0,90257.0,0.01107947]
[1767413965842,0.01107898,90261.0,90256.0,0.02215959]
[1767413966038,0.01107885,90262.0,90257.0,0.01107947]
[1767413966276,0.01107898,90261.0,90256.0,0.02215959]
[1767413966636,0.01107849,90265.0,90261.0,0.000999]
[1767413967266,0.01107849,90265.0,90259.0,0.01107922]
[1767413967462,0.01107849,90265.0,90260.0,0.0110791]
[1767413968428,0.01107836,90266.0,90261.0,0.01107898]
[1767413968669,0.01107849,90265.0,90260.0,0.0110791]
[1767413969364,0.01107861,90264.0,90260.0,0.0110791]
[1767413969790,0.01107849,90265.0,90260.0,0.0110791]
[1767413969995,0.01107861,90264.0,90259.0,0.01107922]
[1767413970188,0.01107898,90261.0,90256.0,0.02215959]
[1767413970376,0.01107885,90262.0,90257.0,0.01107947]
[1767413970790,0.01107873,90263.0,90258.0,0.01107935]
[1767413971212,0.06647205,90264.0,90259.0,0.01107922]
[1767413971413,0.06647205,90264.0,90258.0,0.01107935]
[1767413971610,0.06647205,90264.0,90259.0,0.01107922]
[1767413972197,0.01107861,90264.0,90259.0,0.01107922]
[1767413972400,0.01107849,90265.0,90260.0,0.0110791]
[1767413972622,0.01107836,90266.0,90261.0,0.01107898]
[1767413973031,0.04616085,90265.0,90261.0,0.01107898]
[1767413973355,0.01107849,90265.0,90260.0,0.0110791]
[1767413973573,0.01107849,90265.0,90259.0,0.01107922]
[1767413973728,0.01107873,90263.0,90258.0,0.01107935]
[1767413973930,0.01107861,90264.0,90259.0,0.01107922]
[1767413974532,0.01107873,90263.0,90258.0,0.01107935]
[1767413974700,0.01107861,90264.0,90259.0,0.01107922]
[1767413975318,0.01107849,90265.0,90259.0,0.01107922]
[1767413976264,0.01107836,90266.0,90261.0,0.01107898]
[1767413976465,0.01107849,90265.0,90260.0,0.0110791]
[1767413976646,0.01107836,90266.0,90261.0,0.01107898]
[1767413977291,0.01107824,90267.0,90262.0,0.01107885]
[1767413977468,0.01107836,90266.0,90261.0,0.01107898]
[1767413978235,0.01107878,90269.0,90266.0,0.000999]
[1767413978652,7.8e-07,90269.0,90264.0,0.01107861]
[1767413978855,7.8e-07,90269.0,90266.0,0.01107836]
[1767413979036,7.8e-07,90269.0,90265.0,0.01107849]
[1767413981400,7.8e-07,90269.0,90266.0,0.01107836]
[1767413982290,7.8e-07,90269.0,90266.0,0.06646967]
[1767413983059,7.8e-07,90269.0,90267.0,0.05539074]
[1767413983261,0.01108,90278.0,90274.0,0.01107738]
[1767413983879,0.01107652,90281.0,90275.0,0.01107726]
[1767413984360,0.01107652,90281.0,90276.0,0.01107714]
[1767413984608,0.01108,90284.0,90276.0,0.01107714]
[1767413984609,0.0110764,90282.0,90276.0,0.01107714]
[1767413984864,0.0110764,90282.0,90277.0,0.01107701]
[1767413986174,0.0110764,90282.0,90278.0,0.01107689]
[1767413986378,0.01107628,90283.0,90278.0,0.01107689]
[1767413986891,0.0110764,90282.0,90277.0,0.01107701]
[1767413987093,0.0664585,90282.0,90275.0,0.01107726]
[1767413987685,0.01107665,90280.0,90274.0,0.06646386]
[1767413987925,0.01107665,90280.0,90274.0,0.01107738]
[1767413988126,0.01107689,90278.0,90273.0,0.0110775]
[1767413988366,0.01107689,90278.0,90272.0,0.0664653]
[1767413988367,0.01107689,90278.0,90272.0,0.01107763]
[1767413988546,0.06646156,90278.0,90270.0,0.01107787]
[1767413988760,0.01107714,90276.0,90271.0,0.01107775]
[1767413988968,0.01107701,90277.0,90272.0,0.01107763]
[1767413989275,0.01107701,90277.0,90273.0,0.0110775]
[1767413989478,0.01107701,90277.0,90272.0,0.01107763]
[1767413989678,0.01107714,90276.0,90271.0,0.01107775]
[1767413991190,0.01107701,90277.0,90272.0,0.01107763]
[1767413991546,0.01107714,90276.0,90271.0,0.01107775]
[1767413991755,0.01107714,90276.0,90272.0,0.01107763]
[1767413992095,0.01107701,90277.0,90272.0,0.01107763]
[1767413993184,0.01107689,90278.0,90273.0,0.0110775]
[1767413996838,0.05538378,90280.0,90273.0,0.06646448]
[1767413996839,0.01107665,90280.0,90273.0,0.06646448]
[1767413997037,0.01107689,90278.0,90273.0,0.0110775]
[1767413997237,0.01107689,90278.0,90272.0,0.01107763]
[1767413997442,0.01107689,90278.0,90273.0,0.0110775]
[1767413998061,0.01107714,90276.0,90270.0,0.01107787]
[1767413998235,0.01107701,90277.0,90271.0,0.01107775]
[1767413998757,0.01107701,90277.0,90272.0,0.01107763]
[1767413999405,0.01107726,90275.0,90269.0,0.0004955]
[1767413999669,0.01107726,90275.0,90268.0,0.24315262]
[1767413999670,0.01107849,90265.0,90259.0,0.01107922]
[1767413999869,0.01107824,90267.0,90262.0,0.01107885]
[1767414000168,0.01107824,90267.0,90261.0,0.02215898]
[1767414000400,0.06646885,90268.0,90263.0,0.01107873]
[1767414000597,0.01107824,90267.0,90263.0,0.01108]
[1767414000823,0.01107812,90268.0,90263.0,0.02215873]
[1767414001165,0.01107812,90268.0,90264.0,0.01107861]
[1767414001367,0.01107812,90268.0,90263.0,0.02215873]
[1767414001885,0.01107812,90268.0,90263.0,0.01107873]
[1767414003593,0.01107824,90267.0,90260.0,0.0110791]
[1767414003794,0.0453695,90265.0,90261.0,0.01107898]
[1767414003994,0.01107885,90262.0,90258.0,0.01108]
[1767414004197,0.01107885,90262.0,90258.0,7.98e-05]
[1767414004363,0.05539552,90260.0,90258.0,7.98e-05]
[1767414004565,0.05539552,90260.0,90258.0,0.0111598]
[1767414004788,0.01107898,90261.0,90258.0,0.0111598]
[1767414004970,0.06647394,90261.0,90258.0,0.0111598]
[1767414005563,0.01107885,90262.0,90258.0,0.0101608]
[1767414005731,0.01107898,90261.0,90258.0,0.0101608]
[1767414006323,0.01107873,90263.0,90258.0,0.0101608]
[1767414006526,0.01107873,90263.0,90258.0,0.02124015]
[1767414006756,0.01107885,90262.0,90258.0,0.0101608]
[1767414006937,0.01107898,90261.0,90258.0,0.0101608]
[1767414007138,0.01107885,90262.0,90258.0,0.0101608]
[1767414007346,0.01107873,90263.0,90258.0,0.02124015]
[1767414008102,0.01107885,90262.0,90258.0,0.0101608]
[1767414008298,0.01107898,90261.0,90258.0,0.0101608]
[1767414010292,0.01107885,90262.0,90258.0,0.0101608]
[1767414010439,0.01107885,90262.0,90254.0,0.01107984]
[1767414010440,0.01722799,90259.0,90225.0,0.0004]
[1767414010651,0.01108094,90245.0,90241.0,0.04895527]
[1767414011072,0.05540473,90245.0,90241.0,0.04895527]
[1767414011276,0.01108094,90245.0,90241.0,0.04895527]
[1767414011482,0.0110807,90247.0,90241.0,0.0600367]
[1767414011701,0.0110807,90247.0,90241.0,0.04895527]
[1767414011901,0.01108106,90244.0,90241.0,0.04895527]
[1767414012507,0.0110807,90247.0,90241.0,0.0600367]
[1767414012673,0.0110807,90247.0,90244.0,0.04895527]
[1767414012880,0.01108057,90248.0,90244.0,0.04895527]
[1767414013099,0.06648142,90251.0,90244.0,0.06003633]
[1767414013100,0.01108045,90249.0,90244.0,0.06003633]
[1767414013292,0.01108045,90249.0,90245.0,0.01108094]
[1767414013649,0.02216033,90250.0,90244.0,0.06003633]
[1767414014008,0.01108057,90248.0,90244.0,0.04895527]
[1767414015478,0.01108045,90249.0,90244.0,0.06003633]
[1767414015691,0.01108,90250.0,90245.0,0.01108094]
[1767414016249,0.01108,90250.0,90244.0,0.06003633]
[1767414017516,0.01108,90250.0,90247.0,0.06003597]
[1767414018370,0.01108,90250.0,90247.0,0.11543941]
[1767414018754,0.02216033,90254.0,90251.0,0.0110802]
[1767414018952,0.01107947,90257.0,90249.0,0.05540199]
[1767414018953,0.01108,90253.0,90249.0,0.01108045]
[1767414019196,0.01108,90253.0,90250.0,0.01108033]
[1767414019606,0.01107971,90255.0,90250.0,0.01108033]
[1767414019786,0.01108,90252.0,90250.0,0.01108033]
[1767414020408,0.01108,90252.0,90249.0,0.01108045]
[1767414020912,0.01107971,90255.0,90251.0,0.0110802]
[1767414021110,0.02215984,90254.0,90249.0,0.01108045]
[1767414021476,0.06154799,90266.0,90246.0,0.01108082]
[1767414021477,0.0453695,90267.0,90246.0,0.04895527]
[1767414021698,0.0453695,90267.0,90254.0,0.01207884]
[1767414021699,0.0110791,90260.0,90254.0,0.01207884]
[1767414021997,0.01107947,90257.0,90254.0,0.000999]
[1767414022200,0.01107947,90257.0,90251.0,0.0110802]
[1767414022378,0.01107959,90256.0,90250.0,0.01108033]
[1767414022583,0.01107959,90256.0,90251.0,0.0110802]
[1767414022985,0.01107971,90255.0,90250.0,0.01108033]
[1767414023365,0.01107971,90255.0,90248.0,0.01108057]
[1767414023579,0.02215947,90257.0,90252.0,0.01108008]
[1767414024274,0.01108,90257.0,90252.0,0.01108008]
[1767414024808,0.02215947,90257.0,90251.0,0.0110802]
[1767414024994,0.02215947,90257.0,90252.0,0.01108008]
[1767414025490,0.02215947,90257.0,90251.0,0.0110802]
[1767414026466,0.01108,90257.0,90253.0,0.01107996]
[1767414027008,0.01108,90257.0,90252.0,0.01108008]
[1767414027214,0.01108,90257.0,90253.0,0.01107996]
[1767414027817,0.01108,90257.0,90252.0,0.01108008]
[1767414028983,0.02215947,90257.0,90252.0,0.01108008]
[1767414030392,0.01108,90257.0,90254.0,0.01107984]
[1767414030530,0.01108,90257.0,90253.0,0.01107996]
[1767414030938,0.010081,90257.0,90254.0,0.01107984]
[1767414034266,0.010081,90257.0,90254.0,0.06647851]
[1767414034484,0.010081,90257.0,90255.0,0.05539808]
[1767414036730,0.01107885,90262.0,90255.0,0.06647779]
[1767414037149,0.01108,90261.0,90258.0,0.01107935]
[1767414037345,0.05644823,90263.0,90258.0,0.01107935]
[1767414037703,0.06006701,90262.0,90257.0,0.01107947]
[1767414038049,0.01108,90261.0,90257.0,0.01107947]
[1767414038244,0.01108,90260.0,90257.0,0.01107947]
[1767414039490,0.06006816,90260.0,90257.0,0.01107947]
[1767414040039,0.01108,90260.0,90257.0,0.01107947]
[1767414043982,0.000999,90257.0,90256.0,0.01107959]
[1767414044410,0.01108,90260.0,90257.0,0.01107947]
[1767414045234,0.01108,90260.0,90257.0,0.01008047]
[1767414045399,0.01108,90260.0,90256.0,0.01107959]
[1767414046186,0.01108,90260.0,90257.0,0.01107947]
[1767414047968,0.01108,90260.0,90256.0,0.01107959]
[1767414048112,0.01108,90260.0,90257.0,0.01107947]
[1767414049999,0.0221591,90260.0,90254.0,0.01107984]
[1767414050521,0.01107922,90259.0,90254.0,0.01107984]
[1767414050767,0.01107947,90257.0,90250.0,0.0554015]
[1767414051249,0.01107947,90257.0,90249.0,0.06648272]
[1767414051774,0.01107947,90257.0,90252.0,0.01108008]
[1767414052134,0.01107947,90257.0,90250.0,0.0664816]
[1767414052879,0.01107947,90257.0,90252.0,0.01108008]
[1767414053727,0.0664761,90258.0,90253.0,0.01107996]
[1767414054481,0.01107947,90257.0,90250.0,0.0664816]
[1767414055837,0.01107947,90257.0,90252.0,0.01108008]
[1767414056086,0.01107959,90256.0,90251.0,0.0110802]
[1767414057093,0.01107971,90255.0,90250.0,0.01108033]
[1767414058104,0.01107959,90256.0,90251.0,0.0110802]
[1767414058439,0.01107959,90256.0,90249.0,0.01108045]
[1767414058651,0.01107971,90255.0,90249.0,0.01108045]
[1767414059071,0.01107984,90254.0,90248.0,0.01108057]
[1767414059245,0.01107996,90253.0,90248.0,0.01108057]
[1767414059695,0.01107984,90254.0,90249.0,0.01108045]
[1767414059851,0.01108008,90252.0,90247.0,0.0110807]
[1767414060052,0.05619816,90253.0,90247.0,0.0110807]
[1767414060387,0.0451182,90253.0,90247.0,0.0110807]
[1767414060534,0.0451182,90253.0,90246.0,0.01108082]
[1767414060535,0.01108008,90252.0,90246.0,0.01108082]
[1767414060735,0.01108008,90252.0,90247.0,0.0110807]
[1767414061368,0.0451182,90253.0,90248.0,0.01108057]
[1767414061712,0.0451182,90253.0,90249.0,0.01108045]
[1767414061889,0.0451182,90253.0,90250.0,0.01108033]
[1767414062874,0.0451182,90255.0,90251.0,0.0110802]
[1767414063477,0.0451182,90255.0,90250.0,0.01108033]
[1767414064131,0.05619791,90255.0,90250.0,0.01108033]
[1767414064348,0.0451182,90255.0,90251.0,0.0110802]
[1767414064550,0.05619791,90255.0,90250.0,0.01108033]
[1767414064905,0.0451182,90255.0,90252.0,0.01108008]
[1767414065101,0.05619791,90255.0,90250.0,0.01108033]
[1767414065308,0.05619755,90258.0,90252.0,0.01108008]
[1767414065510,0.05619755,90258.0,90255.0,0.000999]
[1767414066047,0.05619755,90258.0,90253.0,0.01107996]
[1767414067734,0.0451182,90258.0,90254.0,0.01107984]
[1767414067892,0.05619755,90258.0,90253.0,0.01107996]
[1767414068491,0.0451182,90258.0,90253.0,0.01107996]
[1767414068715,0.0451182,90258.0,90255.0,0.01107971]
[1767414068941,0.0561982,90260.0,90258.0,0.000999]
[1767414069238,0.0561982,90260.0,90255.0,0.01107971]
[1767414069965,0.0561982,90260.0,90256.0,0.01107959]
[1767414070743,0.0672773,90260.0,90255.0,0.01107971]
[1767414071840,0.01107935,90258.0,90252.0,0.01108008]
[1767414072050,0.01107935,90258.0,90253.0,0.01107996]
[1767414072254,0.01107947,90257.0,90253.0,0.01107996]
[1767414072450,0.01107935,90258.0,90253.0,0.01107996]
[1767414072900,0.01107922,90259.0,90253.0,0.01107996]
[1767414074052,0.01107935,90258.0,90253.0,0.01107996]
[1767414075043,0.0561982,90260.0,90256.0,0.01107959]
[1767414075192,0.01108,90260.0,90257.0,0.01107947]
[1767414076292,0.01108,90260.0,90257.0,0.06647681]
[1767414076501,0.010081,90260.0,90257.0,0.01107947]
[1767414076714,0.0451182,90262.0,90258.0,0.01107935]
[1767414076882,0.01108,90259.0,90257.0,0.01107947]
[1767414077076,0.05619705,90262.0,90257.0,0.01107947]
[1767414077284,0.01108,90258.0,90257.0,0.01107947]
[1767414078114,0.01108,90258.0,90256.0,0.01107959]
[1767414078340,0.05619705,90262.0,90257.0,0.01107947]
[1767414078551,0.0350198,90261.0,90257.0,0.01107947]
[1767414078740,0.0451182,90259.0,90255.0,0.02755725]
[1767414078917,0.0451182,90259.0,90255.0,0.05539819]
[1767414079270,0.01108,90260.0,90255.0,0.05539819]
[1767414079271,0.01108,90260.0,90257.0,0.01107947]
[1767414079455,0.01108,90259.0,90258.0,0.01107935]
[1767414079620,0.01108,90259.0,90257.0,0.01107947]
[1767414079821,0.01108,90259.0,90256.0,0.01107959]
[1767414080601,0.01108,90258.0,90257.0,0.01107947]
[1767414080806,0.05539354,90264.0,90258.0,0.01107935]
[1767414081043,0.01108,90262.0,90258.0,0.01107935]
[1767414081687,0.01107861,90264.0,90258.0,0.01107935]
[1767414081988,0.03501857,90263.0,90258.0,0.01107935]
[1767414082276,0.01107885,90262.0,90257.0,0.01107947]
[1767414083852,0.01108,90261.0,90259.0,0.01107922]
[1767414084082,0.01207822,90259.0,90253.0,0.01107996]
[1767414084280,0.000999,90259.0,90254.0,0.01107984]
[1767414084484,0.01107922,90259.0,90254.0,0.01107984]
[1767414084691,0.0110791,90260.0,90255.0,0.01107971]
[1767414084891,0.01107922,90259.0,90254.0,0.01107984]
[1767414085106,0.01107922,90259.0,90253.0,0.01107996]
[1767414085665,0.01107922,90259.0,90254.0,0.01107984]
[1767414085867,0.01107922,90259.0,90254.0,0.0604748]
[1767414086066,0.02215898,90261.0,90256.0,0.01107959]
[1767414086318,0.02215898,90261.0,90255.0,0.01107971]
[1767414086319,0.0110791,90260.0,90255.0,0.01107971]
[1767414086626,0.02215898,90261.0,90256.0,0.01107959]
[1767414086931,0.0110791,90260.0,90255.0,0.01107971]
[1767414087266,0.02215898,90261.0,90256.0,0.01107959]